bitfinex/quotes_BTCUSD_20251224
["timestamp","ask_amount","ask_price","bid_price","bid_amount"]
[1766605386941,0.011427,87512.0,87502.0,0.54494]
[1766605387539,0.01142713,87511.0,87502.0,0.01144]
[1766605387749,0.06856262,87512.0,87502.0,0.01089]
[1766605387951,0.01142713,87511.0,87502.0,0.01089]
[1766605388149,0.06856262,87512.0,87502.0,0.01089]
[1766605388299,0.06856323,87511.0,87502.0,0.01089]
[1766605388652,0.01142713,87511.0,87502.0,0.01089]
[1766605389839,0.02470024,87513.0,87511.0,0.000549]
[1766605390036,0.05713306,87515.0,87502.0,0.53807]
[1766605390302,0.01142674,87514.0,87502.0,0.53807]
[1766605390456,0.02286674,87514.0,87502.0,0.53807]
[1766605391599,0.01144,87514.0,87502.0,0.53807]
[1766605392400,0.02286674,87514.0,87502.0,0.53807]
[1766605392601,0.01144,87514.0,87502.0,0.53807]
[1766605392750,0.02286674,87514.0,87502.0,0.53807]
[1766605394185,0.01144,87514.0,87502.0,0.53807]
[1766605394387,0.02286674,87514.0,87502.0,0.53807]
[1766605394929,0.01144,87514.0,87502.0,0.53807]
[1766605397764,0.02286674,87514.0,87502.0,0.53807]
[1766605398292,0.05713472,87513.0,87502.0,0.53807]
[1766605398530,0.04756698,87514.0,87502.0,0.53807]
[1766605398751,0.08000099,87514.0,87502.0,0.53807]
[1766605399581,0.01142687,87513.0,87502.0,0.53807]
[1766605400077,0.04756698,87514.0,87502.0,0.53807]
[1766605400258,0.02286674,87514.0,87502.0,0.53807]
[1766605401756,0.01142687,87513.0,87502.0,0.53807]
[1766605402370,0.04756698,87514.0,87502.0,0.53807]
[1766605402576,0.06856207,87512.0,87502.0,0.53807]
[1766605402825,0.011427,87512.0,87502.0,0.53807]
[1766605403531,0.06856212,87512.0,87502.0,0.52718]
[1766605403971,0.011427,87512.0,87502.0,0.52718]
[1766605404377,0.01142713,87511.0,87502.0,0.52718]
[1766605404592,0.0685622,87512.0,87502.0,0.52718]
[1766605405051,0.01142713,87511.0,87502.0,0.52718]
[1766605405339,0.06856288,87511.0,87502.0,0.52718]
[1766605406535,0.01142713,87511.0,87502.0,0.52718]
[1766605408504,0.06856519,87508.0,87502.0,0.52718]
[1766605408875,0.0685649,87509.0,87502.0,0.52718]
[1766605409073,0.01142765,87507.0,87502.0,0.52718]
[1766605409289,0.01142752,87508.0,87502.0,0.52718]
[1766605409491,0.0685649,87509.0,87502.0,0.52718]
[1766605409689,0.01142739,87509.0,87502.0,0.52718]
[1766605410229,0.01142726,87510.0,87502.0,0.52718]
[1766605410414,0.06856361,87510.0,87502.0,0.52718]
[1766605410764,0.01142739,87509.0,87502.0,0.52718]
[1766605412437,0.01142752,87508.0,87501.0,0.01144]
[1766605412639,0.06856453,87509.0,87501.0,0.01144]
[1766605413198,0.01142739,87509.0,87501.0,0.01144]
[1766605414198,0.06856439,87509.0,87501.0,0.01144]
[1766605415303,0.01142752,87508.0,87501.0,0.01144]
[1766605415846,0.06856363,87510.0,87501.0,0.01144]
[1766605417009,0.01142739,87509.0,87501.0,0.01144]
[1766605417234,0.06856453,87509.0,87501.0,0.01144]
[1766605418774,0.01142726,87510.0,87501.0,0.01144]
[1766605418932,0.06856396,87510.0,87501.0,0.01144]
[1766605423109,0.01142726,87510.0,87501.0,0.01144]
[1766605424009,0.05713585,87511.0,87501.0,0.01144]
[1766605424657,0.01142726,87510.0,87501.0,0.01144]
[1766605424861,0.06856298,87511.0,87501.0,0.01144]
[1766605425297,0.01142726,87510.0,87501.0,0.01144]
[1766605426305,0.01142739,87509.0,87501.0,0.01144]
[1766605426510,0.06856381,87510.0,87501.0,0.01144]
[1766605428264,0.01142726,87510.0,87501.0,0.01144]
[1766605428478,0.06856409,87510.0,87501.0,0.01144]
[1766605428687,0.01142739,87509.0,87501.0,0.01144]
[1766605429102,0.06856409,87510.0,87501.0,0.01144]
[1766605429278,0.01142726,87510.0,87501.0,0.01144]
[1766605429437,0.06856128,87513.0,87501.0,0.01144]
[1766605429637,0.0475679,87514.0,87501.0,0.45588]
[1766605429909,0.01144,87514.0,87501.0,0.45588]
[1766605430068,0.02286674,87514.0,87501.0,0.45588]
[1766605430269,0.01144,87514.0,87501.0,0.45588]
[1766605430496,0.02286674,87514.0,87501.0,0.45588]
[1766605430654,0.01144,87514.0,87501.0,0.45588]
[1766605430861,0.01144,87514.0,87501.0,0.46730844]
[1766605431079,0.01144,87514.0,87502.0,0.45586831]
[1766605431698,0.010891,87514.0,87504.0,0.44444]
[1766605431903,0.00010619,87518.0,87504.0,0.44444]
[1766605432100,0.01144,87517.0,87504.0,0.44444]
[1766605432411,0.01144,87517.0,87504.0,0.45586804]
[1766605432978,0.01144,87517.0,87504.0,0.44444]
[1766605433716,0.01144,87517.0,87504.0,0.45586804]
[1766605433915,0.00010619,87518.0,87507.0,0.44444]
[1766605434114,0.01144,87516.0,87507.0,0.44444]
[1766605434498,0.01089,87516.0,87507.0,0.44444]
[1766605434662,0.00596654,87515.0,87507.0,0.44444]
[1766605434885,0.00596654,87515.0,87507.0,0.45586765]
[1766605435111,0.00010619,87518.0,87509.0,0.44444]
[1766605435308,0.02470116,87527.0,87511.0,0.45586713]
[1766605435514,0.01089,87523.0,87518.0,0.44444]
[1766605435950,0.01144,87528.0,87518.0,0.44444]
[1766605436741,0.02286491,87528.0,87518.0,0.44444]
[1766605437662,0.01144,87528.0,87518.0,0.44444]
[1766605438022,0.02286491,87528.0,87518.0,0.44444]
[1766605438561,0.01144,87528.0,87518.0,0.44444]
[1766605438967,0.02286491,87528.0,87518.0,0.44444]
[1766605439977,0.01144,87528.0,87518.0,0.44444]
[1766605440998,0.02470116,87529.0,87519.0,0.42984]
[1766605441197,0.00025026,87525.0,87519.0,0.42984]
[1766605451564,0.00025026,87525.0,87512.0,0.08000177]
[1766605451565,0.00025026,87525.0,87514.0,0.42984]
[1766605451763,0.000549,87519.0,87514.0,0.42984]
[1766605451962,0.00025026,87525.0,87514.0,0.42984]
[1766605453750,0.00025026,87525.0,87515.0,0.44126661]
[1766605453946,0.00025026,87525.0,87515.0,0.42984]
[1766605454152,0.01144,87526.0,87517.0,0.42984]
[1766605455467,0.01144,87526.0,87512.0,0.452707]
[1766605455687,0.01144,87526.0,87512.0,0.44128]
[1766605457189,0.01144,87526.0,87512.0,0.452707]
[1766605458492,0.01142452,87531.0,87516.0,0.44126648]
[1766605458698,0.02466308,87533.0,87520.0,0.39239902]
[1766605458899,0.2446,87536.0,87520.0,0.39239902]
[1766605458900,0.02466308,87535.0,87524.0,0.42984]
[1766605459103,0.2446,87536.0,87525.0,0.4412653]
[1766605459454,0.01144,87535.0,87525.0,0.42984]
[1766605460272,0.2446,87536.0,87525.0,0.42984]
[1766605460420,0.01144,87534.0,87525.0,0.42984]
[1766605464696,0.00025023,87533.0,87525.0,0.42984]
[1766605469472,0.01142361,87538.0,87523.0,0.01144]
[1766605469473,0.05711377,87545.0,87528.0,0.43777491]
[1766605469678,0.01142269,87545.0,87529.0,0.44921478]
[1766605469854,0.01256709,87546.0,87530.0,0.42635]
[1766605470117,0.01256709,87546.0,87531.0,0.01142452]
[1766605470314,0.06967992,87546.0,87530.0,0.42635]
[1766605470467,0.01256709,87546.0,87530.0,0.43777465]
[1766605470651,0.01256709,87546.0,87531.0,0.01142452]
[1766605470851,0.00114453,87546.0,87531.0,0.01142452]
[1766605471049,0.01256709,87546.0,87530.0,0.49489742]
[1766605471263,0.01256709,87546.0,87531.0,0.01142452]
[1766605471483,0.01142269,87545.0,87530.0,0.43777465]
[1766605471682,0.01144,87544.0,87530.0,0.43777465]
[1766605472334,0.07997702,87544.0,87530.0,0.42635]
[1766605472616,0.00114453,87543.0,87530.0,0.42635]
[1766605473043,0.00114453,87543.0,87530.0,0.43777465]
[1766605473594,0.00114453,87543.0,87531.0,0.01142452]
[1766605473997,0.00114453,87543.0,87532.0,0.01142439]
[1766605474205,0.00114453,87543.0,87530.0,0.42635]
[1766605474400,0.00114453,87543.0,87531.0,0.01142452]
[1766605474611,0.00114453,87543.0,87532.0,0.01142439]
[1766605474814,0.01144,87544.0,87532.0,0.49489623]
[1766605474996,0.01144,87544.0,87532.0,0.43777439]
[1766605475203,0.01144,87544.0,87532.0,0.49489622]
[1766605475603,0.01144,87544.0,87533.0,0.01142426]
[1766605475805,0.01144,87544.0,87532.0,0.49489622]
[1766605476006,0.01144,87544.0,87532.0,0.42635]
[1766605477318,0.000549,87532.0,87528.0,0.01144]
[1766605477523,0.01142321,87541.0,87528.0,0.01144]
[1766605477761,0.06854139,87539.0,87528.0,0.01144]
[1766605477983,0.01144,87538.0,87524.0,0.41077]
[1766605478188,0.01144,87538.0,87525.0,0.0114253]
[1766605481559,0.01144,87538.0,87526.0,0.39933]
[1766605486312,0.02286361,87538.0,87526.0,0.39933]
[1766605486726,0.01144,87538.0,87526.0,0.39933]
[1766605486943,0.02286361,87538.0,87526.0,0.39933]
[1766605487151,0.01144,87538.0,87526.0,0.39933]
[1766605487545,0.02286361,87538.0,87526.0,0.39933]
[1766605487873,0.01144,87538.0,87526.0,0.39933]
[1766605488537,0.01144,87538.0,87526.0,0.398781]
[1766605488538,0.01142374,87537.0,87526.0,0.398781]
[1766605488960,0.07998185,87538.0,87526.0,0.398781]
[1766605489444,0.02286361,87538.0,87524.0,0.01144]
[1766605491597,0.01144,87538.0,87524.0,0.01144]
[1766605492306,0.02286361,87538.0,87524.0,0.01144]
[1766605493825,0.07998171,87538.0,87524.0,0.01144]
[1766605494689,0.07998171,87538.0,87524.0,0.41077]
[1766605495503,0.01142374,87537.0,87524.0,0.41077]
[1766605495702,0.02286361,87538.0,87524.0,0.41077]
[1766605496125,0.011424,87535.0,87524.0,0.41077]
[1766605496401,0.06854384,87536.0,87524.0,0.41077]
[1766605496752,0.06854252,87537.0,87524.0,0.41077]
[1766605496951,0.01142387,87536.0,87524.0,0.41077]
[1766605497156,0.01142374,87537.0,87524.0,0.41077]
[1766605497561,0.06854245,87537.0,87524.0,0.41077]
[1766605497802,0.01142374,87537.0,87524.0,0.41077]
[1766605498972,0.01144,87538.0,87524.0,0.41077]
[1766605499197,0.01144,87538.0,87525.0,0.4179853]
[1766605499610,0.01144,87538.0,87526.0,0.40656]
[1766605499834,0.00016989,87527.0,87526.0,0.40656]
[1766605500109,8.9e-07,87527.0,87526.0,0.40656]
[1766605502009,8.9e-07,87527.0,87524.0,0.0799925]
[1766605502010,8.9e-07,87527.0,87524.0,0.01144]
[1766605502211,8.9e-07,87527.0,87524.0,0.02288]
[1766605504469,8.9e-07,87527.0,87524.0,0.42944]
[1766605505480,0.06854296,87537.0,87524.0,0.42944]
[1766605506491,0.01142387,87536.0,87524.0,0.42944]
[1766605507453,0.06854296,87537.0,87524.0,0.42944]
[1766605508444,0.06854358,87536.0,87524.0,0.42944]
[1766605508764,0.01142374,87537.0,87510.0,0.40656]
[1766605508765,0.000169,87524.0,87510.0,0.40656]
[1766605508893,0.000169,87524.0,87511.0,0.01144]
[1766605508894,0.01142543,87524.0,87511.0,0.01144]
[1766605509096,0.01142543,87524.0,87511.0,0.418]
[1766605510596,0.06855269,87524.0,87511.0,0.418]
[1766605510798,0.01144,87526.0,87511.0,0.418]
[1766605510799,0.01144,87526.0,87512.0,0.40656]
[1766605511024,0.01144,87526.0,87513.0,0.46369434]
[1766605511201,0.01144,87526.0,87515.0,0.40656]
[1766605511409,0.03430137,87527.0,87521.0,0.40656]
[1766605511562,0.44949555,87540.0,87526.0,0.40694]
[1766605511780,0.03429745,87534.0,87526.0,0.40694]
[1766605511977,0.01144,87536.0,87526.0,0.40656]
[1766605512867,0.03429741,87535.0,87526.0,0.40656]
[1766605522241,0.03429741,87535.0,87526.0,0.41798517]
[1766605522498,0.03429741,87535.0,87526.0,0.40656]
[1766605525771,0.03429741,87535.0,87526.0,0.41798517]
[1766605525983,0.03429741,87535.0,87526.0,0.40656]
[1766605526413,0.03429741,87535.0,87526.0,0.41798517]
[1766605527732,0.03429741,87535.0,87526.0,0.40656]
[1766605528922,0.03429741,87535.0,87523.0,0.01144]
[1766605528923,0.01142478,87529.0,87523.0,0.01144]
[1766605529175,0.00055,87523.0,87521.0,0.01144]
[1766605529406,0.01142543,87524.0,87517.0,0.01144]
[1766605529606,0.01142569,87522.0,87509.0,0.38176]
[1766605529719,0.0685534,87523.0,87511.0,0.01142465]
[1766605529923,0.01142556,87523.0,87509.0,0.3932]
[1766605530124,0.07999266,87524.0,87509.0,0.40462739]
[1766605530125,0.02286543,87524.0,87509.0,0.40462739]
[1766605530737,0.02286543,87524.0,87509.0,0.46176416]
[1766605530916,0.02286543,87524.0,87509.0,0.3932]
[1766605531116,0.02286543,87524.0,87509.0,0.40462739]
[1766605531472,0.02286543,87524.0,87509.0,0.46176421]
[1766605531673,0.02286543,87524.0,87509.0,0.40462739]
[1766605532479,0.02286543,87524.0,87509.0,0.3932]
[1766605532480,0.0799931,87524.0,87509.0,0.3932]
[1766605532670,0.05713176,87517.0,87509.0,0.01144]
[1766605532843,0.01144,87518.0,87509.0,0.01144]
[1766605533039,0.02286622,87518.0,87509.0,0.01144]
[1766605533886,0.01144,87518.0,87509.0,0.01144]
[1766605536864,0.01144,87518.0,87509.0,0.02286739]
[1766605537107,0.01144,87518.0,87510.0,0.38176]
[1766605539671,0.01144,87518.0,87510.0,0.39318726]
[1766605540308,0.01144,87518.0,87510.0,0.38176]
[1766605540470,0.01144,87518.0,87510.0,0.39318726]
[1766605540672,0.01144,87519.0,87510.0,0.39318726]
[1766605541329,0.01144,87519.0,87510.0,0.38176]
[1766605542065,0.01144,87519.0,87510.0,0.39318726]
[1766605542636,0.01144,87519.0,87511.0,0.01142713]
[1766605542841,0.01144,87519.0,87512.0,0.068562]
[1766605543046,0.01144,87519.0,87513.0,0.01142687]
[1766605543268,0.01142426,87533.0,87519.0,0.37026]
[1766605543474,0.01144,87532.0,87519.0,0.37026]
[1766605543679,0.03430133,87527.0,87519.0,0.37026]
[1766605543880,0.01144,87526.0,87519.0,0.37026]
[1766605545182,0.03430133,87527.0,87520.0,0.01142595]
[1766605545386,0.03430133,87527.0,87520.0,0.05712978]
[1766605545600,0.03430133,87527.0,87522.0,0.06855393]
[1766605545838,0.03430133,87527.0,87521.0,0.06855437]
[1766605546058,0.01142387,87536.0,87521.0,0.06855437]
[1766605546259,0.0457252,87536.0,87522.0,0.01142569]
[1766605546459,0.01144,87535.0,87521.0,0.06855437]
[1766605546892,0.03430133,87534.0,87521.0,0.06855437]
[1766605547104,0.03430133,87534.0,87522.0,0.01142569]
[1766605547517,0.01144,87533.0,87522.0,0.06855416]
[1766605547700,0.01144,87533.0,87523.0,0.01142556]
[1766605547900,0.01144,87533.0,87522.0,0.38168569]
[1766605548301,0.01144,87532.0,87524.0,0.01142543]
[1766605548487,0.01144,87532.0,87523.0,0.06855337]
[1766605548687,0.01144,87532.0,87524.0,0.01142543]
[1766605548889,0.01144,87532.0,87522.0,0.43881417]
[1766605549087,0.01144,87532.0,87523.0,0.01142556]
[1766605549341,0.01144,87532.0,87523.0,0.0685534]
[1766605549513,0.01144,87532.0,87522.0,0.37026]
[1766605549718,0.01144,87532.0,87523.0,0.01142556]
[1766605549910,0.01144,87532.0,87522.0,0.38168569]
[1766605550343,0.01144,87532.0,87522.0,0.37026]
[1766605550730,0.01144,87532.0,87522.0,0.38168569]
[1766605550937,0.01144,87532.0,87522.0,0.43881403]
[1766605551388,0.01144,87532.0,87523.0,0.01142556]
[1766605552323,0.01144,87532.0,87524.0,0.01142543]
[1766605552750,0.01144,87532.0,87522.0,0.43881403]
[1766605553167,0.01144,87532.0,87523.0,0.06855277]
[1766605553415,0.01144,87532.0,87524.0,0.01142543]
[1766605553593,0.01144,87532.0,87522.0,0.38168569]
[1766605553785,0.01144,87532.0,87524.0,0.01142543]
[1766605554603,0.01144,87532.0,87522.0,0.43881411]
[1766605554815,0.01144,87532.0,87525.0,0.0114253]
[1766605554955,0.01144,87532.0,87523.0,0.06855216]
[1766605555320,0.01144,87532.0,87524.0,0.06855248]
[1766605555458,0.01144,87532.0,87525.0,0.0114253]
[1766605555659,0.01144,87532.0,87524.0,0.06855244]
[1766605556266,0.01144,87532.0,87523.0,0.01142556]
[1766605556882,0.01144,87532.0,87524.0,0.01142543]
[1766605557303,0.01144,87532.0,87522.0,0.38168569]
[1766605557503,0.01144,87532.0,87523.0,0.06855335]
[1766605557707,0.01144,87532.0,87522.0,0.37026]
[1766605558127,0.01144,87532.0,87519.0,0.02286609]
[1766605558271,0.01144,87532.0,87520.0,0.01142595]
[1766605558478,0.01144,87532.0,87519.0,0.02286609]
[1766605559463,0.01144,87532.0,87519.0,0.07999633]
[1766605559697,0.01144,87532.0,87519.0,0.01144]
[1766605559869,0.01144,87532.0,87519.0,0.02286609]
[1766605560833,0.01144,87532.0,87519.0,0.01144]
[1766605561045,0.01144,87532.0,87519.0,0.07999649]
[1766605561283,0.01144,87532.0,87519.0,0.02286609]
[1766605561487,0.01144,87532.0,87519.0,0.01144]
[1766605561812,0.02286439,87532.0,87519.0,0.01144]
[1766605562043,0.07998637,87532.0,87519.0,0.01144]
[1766605562391,0.02286439,87532.0,87519.0,0.01144]
[1766605562599,0.01144,87532.0,87519.0,0.01144]
[1766605563003,0.00055,87519.0,87515.0,0.01142661]
[1766605563211,0.01144,87527.0,87518.0,0.06855732]
[1766605563533,0.01144,87529.0,87521.0,0.39715]
[1766605569914,0.010891,87529.0,87524.0,0.40857543]
[1766605570120,0.010891,87529.0,87524.0,0.39715]
[1766605570308,0.01144,87529.0,87524.0,0.46570232]
[1766605570497,0.01144,87529.0,87524.0,0.40857543]
[1766605570717,0.01144,87529.0,87524.0,0.39715]
[1766605570915,0.01144,87529.0,87524.0,0.40857543]
[1766605571127,0.01144,87529.0,87524.0,0.46570215]
[1766605571389,0.01144,87529.0,87525.0,0.0114253]
[1766605572768,0.01144,87529.0,87525.0,0.06855171]
[1766605572973,0.01144,87529.0,87525.0,0.06855158]
[1766605573184,0.01144,87529.0,87526.0,0.40857517]
[1766605573377,0.01144,87529.0,87526.0,0.39715]
[1766605577458,0.01144,87529.0,87526.0,0.40857517]
[1766605578617,0.01144,87529.0,87526.0,0.46570071]
[1766605578971,0.01144,87529.0,87526.0,0.46570075]
[1766605579377,0.01144,87529.0,87526.0,0.46570068]
[1766605579589,0.01144,87529.0,87522.0,0.01142569]
[1766605579863,0.01144,87529.0,87523.0,0.01142556]
[1766605580077,0.01144,87529.0,87523.0,0.06855334]
[1766605580309,0.01144,87529.0,87522.0,0.01142569]
[1766605580534,0.01144,87529.0,87523.0,0.01142556]
[1766605580925,0.01144,87529.0,87523.0,0.06855332]
[1766605581159,0.01144,87529.0,87523.0,0.06855325]
[1766605581350,0.01144,87529.0,87523.0,0.01142556]
[1766605581558,0.00114453,87535.0,87524.0,0.01142543]
[1766605581758,0.01144,87533.0,87522.0,0.06855415]
[1766605581959,0.01144,87533.0,87523.0,0.01142556]
[1766605582123,0.01144,87533.0,87522.0,0.06855415]
[1766605582889,0.01144,87533.0,87523.0,0.06855307]
[1766605583080,0.01144,87533.0,87523.0,0.01142556]
[1766605583244,0.01144,87533.0,87522.0,0.06855415]
[1766605583448,0.01144,87533.0,87519.0,0.01144]
[1766605583819,0.05826777,87532.0,87517.0,0.01144]
[1766605584087,0.06854762,87531.0,87517.0,0.02286635]
[1766605584306,0.0240084,87533.0,87517.0,0.02286635]
[1766605584469,0.0240084,87533.0,87520.0,0.01142595]
[1766605584847,0.0240084,87533.0,87519.0,0.06855615]
[1766605585272,0.0240084,87533.0,87519.0,0.01142609]
[1766605585273,0.03543266,87533.0,87519.0,0.01142609]
[1766605585551,0.0240084,87533.0,87520.0,0.01142595]
[1766605585974,0.03543266,87533.0,87518.0,0.06855729]
[1766605586216,0.0925541,87533.0,87517.0,0.01144]
[1766605586418,0.01142452,87531.0,87517.0,0.02286635]
[1766605586622,0.0925541,87533.0,87518.0,0.01142622]
[1766605586822,0.0240084,87533.0,87519.0,0.01142609]
[1766605587317,0.0240084,87533.0,87519.0,0.06855645]
[1766605587536,0.0240084,87533.0,87520.0,0.01142595]
[1766605587773,0.0240084,87533.0,87518.0,0.01142622]
[1766605587976,0.09255435,87533.0,87517.0,0.0685715]
[1766605588180,0.01142452,87531.0,87517.0,0.02286635]
[1766605588693,0.06969098,87532.0,87517.0,0.02286635]
[1766605589491,0.06969098,87532.0,87517.0,0.01144]
[1766605589666,0.01142452,87531.0,87517.0,0.02286635]
[1766605590289,0.01142452,87531.0,87517.0,0.01144]
[1766605591327,0.06854714,87531.0,87517.0,0.01144]
[1766605591492,0.06969098,87532.0,87517.0,0.02286635]
[1766605591691,0.01142452,87531.0,87517.0,0.02286635]
[1766605592422,0.01142465,87530.0,87517.0,0.01144]
[1766605592628,0.06854746,87531.0,87517.0,0.02286635]
[1766605593688,0.06854746,87531.0,87517.0,0.01144]
[1766605594093,0.06969098,87532.0,87517.0,0.07999806]
[1766605594270,0.03543266,87533.0,87519.0,0.01142609]
[1766605594271,0.0240084,87533.0,87519.0,0.01142609]
[1766605594570,0.0240084,87533.0,87520.0,0.06855528]
[1766605594790,0.0240084,87533.0,87520.0,0.01142595]
[1766605595125,0.06854643,87532.0,87518.0,0.01142622]
[1766605595329,0.03543266,87533.0,87518.0,0.01142622]
[1766605595762,0.0240084,87533.0,87520.0,0.01142595]
[1766605596019,0.0240084,87533.0,87518.0,0.01142622]
[1766605596349,0.03543266,87533.0,87518.0,0.01142622]
[1766605596553,0.03543266,87533.0,87519.0,0.38152]
[1766605596759,0.06854776,87531.0,87519.0,0.38152]
[1766605596996,0.01142439,87532.0,87519.0,0.38152]
[1766605597197,0.01142465,87530.0,87519.0,0.38152]
[1766605597397,0.06854755,87531.0,87519.0,0.38152]
[1766605598817,0.06854651,87532.0,87519.0,0.38152]
[1766605599225,0.01142452,87531.0,87519.0,0.38152]
[1766605599780,0.01142452,87531.0,87517.0,0.02286635]
[1766605600367,0.09255513,87533.0,87518.0,0.06855712]
[1766605600567,0.03543266,87533.0,87519.0,0.01142609]
[1766605602034,0.03543266,87533.0,87517.0,0.07999804]
[1766605602035,0.09255444,87533.0,87517.0,0.07999804]
[1766605602624,0.01142465,87530.0,87517.0,0.01144]
[1766605602826,0.01142452,87531.0,87517.0,0.01144]
[1766605603008,0.06854647,87532.0,87517.0,0.02286635]
[1766605603208,0.01142439,87532.0,87517.0,0.02286635]
[1766605603516,0.05712243,87532.0,87517.0,0.07999695]
[1766605603711,0.09255523,87533.0,87517.0,0.07999695]
[1766605603911,0.03543266,87533.0,87517.0,0.07999699]
[1766605604121,0.09255412,87533.0,87517.0,0.02286635]
[1766605604327,0.03543266,87533.0,87517.0,0.02286635]
[1766605604526,0.09255445,87533.0,87518.0,0.01142622]
[1766605604954,0.0240084,87533.0,87518.0,0.01142622]
[1766605605155,0.03543266,87533.0,87519.0,0.01142609]
[1766605605481,0.0240084,87533.0,87519.0,0.01142609]
[1766605605679,0.03543266,87533.0,87519.0,0.01142609]
[1766605606083,0.0240084,87533.0,87520.0,0.01142595]
[1766605606303,0.0240084,87533.0,87519.0,0.01142609]
[1766605606485,0.0240084,87533.0,87519.0,0.05712993]
[1766605606689,0.03543266,87533.0,87519.0,0.06855602]
[1766605606911,0.0240084,87533.0,87519.0,0.01142609]
[1766605607119,0.03543266,87533.0,87518.0,0.06855721]
[1766605607301,0.08113016,87533.0,87518.0,0.01142622]
[1766605607504,0.08113016,87533.0,87517.0,0.02286635]
[1766605607702,0.01142452,87531.0,87517.0,0.07999798]
[1766605607850,0.03543266,87533.0,87517.0,0.07999798]
[1766605608271,0.06854681,87532.0,87517.0,0.02286635]
[1766605608474,0.01142452,87531.0,87517.0,0.07999781]
[1766605608701,0.01142465,87530.0,87517.0,0.01144]
[1766605609107,0.01142452,87531.0,87517.0,0.01144]
[1766605609312,0.09255508,87533.0,87519.0,0.01142609]
[1766605609524,0.000549,87519.0,87516.0,0.01144]
[1766605609728,0.000549,87519.0,87510.0,0.05713586]
[1766605609729,0.01142556,87523.0,87509.0,0.01142739]
[1766605609926,0.06857496,87524.0,87513.0,4.17e-06]
[1766605610156,0.06857496,87524.0,87515.0,0.06855851]
[1766605610353,0.06857496,87524.0,87516.0,0.01142648]
[1766605610498,0.06857496,87524.0,87514.0,0.06710034]
[1766605610711,0.06857496,87524.0,87517.0,0.06855786]
[1766605611059,0.01144,87525.0,87519.0,0.01142609]
[1766605611276,0.01144,87525.0,87520.0,0.01142595]
[1766605611463,0.01144,87525.0,87519.0,0.06855649]
[1766605611685,0.01144,87525.0,87520.0,0.01142595]
[1766605613072,0.03430314,87528.0,87520.0,0.01142595]
[1766605613274,0.03611858,87534.0,87520.0,0.01142595]
[1766605613275,0.01144,87527.0,87521.0,0.01142582]
[1766605614032,0.01144,87527.0,87519.0,0.01142609]
[1766605614246,0.01144,87527.0,87517.0,0.06855687]
[1766605614452,0.01144,87527.0,87518.0,0.01142622]
[1766605614848,0.01144,87527.0,87518.0,0.0685573]
[1766605615102,0.01144,87527.0,87516.0,0.06855772]
[1766605615268,0.01144,87527.0,87516.0,0.01142648]
[1766605615470,0.01144,87527.0,87517.0,0.01142635]
[1766605615847,0.01144,87527.0,87518.0,0.01142622]
[1766605616834,0.01144,87527.0,87517.0,0.01142635]
[1766605618143,0.01144,87527.0,87516.0,0.06855861]
[1766605618345,0.01144,87527.0,87518.0,0.01142622]
[1766605618543,0.01144,87527.0,87517.0,0.01142635]
[1766605619077,0.01144,87527.0,87518.0,0.01142622]
[1766605619305,0.01144,87527.0,87516.0,0.01142648]
[1766605619578,0.01144,87527.0,87517.0,0.01142635]
[1766605619782,0.01144,87527.0,87515.0,0.01142661]
[1766605619963,0.01144,87527.0,87517.0,0.01142635]
[1766605620127,0.01144,87527.0,87518.0,0.01142622]
[1766605620330,0.01144,87527.0,87517.0,0.05713123]
[1766605620945,0.01144,87527.0,87517.0,0.06855765]
[1766605621483,0.01144,87527.0,87517.0,0.01142635]
[1766605621844,0.01144,87527.0,87518.0,0.01142622]
[1766605622471,0.01144,87527.0,87519.0,0.06855607]
[1766605622681,0.01144,87527.0,87519.0,0.06855595]
[1766605622887,0.01144,87527.0,87518.0,0.06855695]
[1766605623113,0.01144,87527.0,87520.0,0.01142595]
[1766605623509,0.01144,87527.0,87519.0,0.06855598]
[1766605623707,0.03430263,87530.0,87520.0,0.01142595]
[1766605624045,0.01144,87526.0,87521.0,0.01142582]
[1766605624334,0.01144,87526.0,87520.0,0.06855572]
[1766605624523,0.01144,87526.0,87518.0,0.01142622]
[1766605624727,0.01144,87526.0,87518.0,0.06855728]
[1766605625322,0.01144,87526.0,87519.0,0.01142609]
[1766605625526,0.01144,87526.0,87518.0,0.01142622]
[1766605626301,0.01144,87526.0,87520.0,0.05712925]
[1766605626497,0.01144,87526.0,87520.0,0.01142595]
[1766605627283,0.01144,87526.0,87519.0,0.06855654]
[1766605627503,0.01144,87526.0,87520.0,0.01142595]
[1766605627945,0.01144,87526.0,87522.0,0.01142569]
[1766605628195,0.01144,87526.0,87521.0,0.01142582]
[1766605628403,0.01144,87526.0,87521.0,0.06855488]
[1766605628622,0.01144,87526.0,87521.0,0.05712892]
[1766605628838,0.01144,87526.0,87522.0,0.01142569]
[1766605629288,0.01144,87525.0,87522.0,0.01142569]
[1766605629494,0.01089,87525.0,87522.0,0.01142569]
[1766605629857,0.01089,87525.0,87521.0,0.06855384]
[1766605630075,0.01089,87525.0,87521.0,0.01142582]
[1766605630275,0.01089,87525.0,87519.0,0.05713045]
[1766605630843,0.01089,87525.0,87520.0,0.01142595]
[1766605631155,0.01089,87525.0,87520.0,0.06855572]
[1766605631360,0.01089,87525.0,87519.0,0.06855654]
[1766605631965,0.01089,87525.0,87520.0,0.0685557]
[1766605632167,0.01089,87525.0,87519.0,0.01142609]
[1766605632363,0.01089,87525.0,87518.0,0.06855602]
[1766605632576,0.01089,87525.0,87519.0,0.01142609]
[1766605632782,0.01089,87525.0,87518.0,0.01142622]
[1766605633430,0.01089,87525.0,87519.0,0.01142609]
[1766605633710,0.01089,87525.0,87519.0,0.06855653]
[1766605634086,0.01089,87525.0,87519.0,0.01142609]
[1766605634495,0.01089,87525.0,87520.0,0.01142595]
[1766605634706,0.01142635,87531.0,87522.0,0.01142569]
[1766605634912,0.01144,87531.0,87523.0,0.05712737]
[1766605635123,0.01144,87531.0,87523.0,0.06855293]
[1766605635365,0.01144,87531.0,87524.0,0.01142543]
[1766605635754,0.01144,87531.0,87524.0,0.06855255]
[1766605635951,0.02469211,87536.0,87526.0,0.01142517]
[1766605636153,0.03430074,87534.0,87526.0,0.01142517]
[1766605636563,0.03430074,87534.0,87525.0,0.06855158]
[1766605636564,0.03430074,87534.0,87525.0,0.0114253]
[1766605637141,0.01144,87535.0,87525.0,0.0114253]
[1766605637367,0.04574074,87535.0,87526.0,0.01142517]
[1766605637564,0.04574074,87535.0,87526.0,0.06855084]